Workbook

Sheet MYP, MSS
B1: Ville Laukkanen | E1: 24.8.1977 Kiiminki
B2: YKKÖSPESIS | E2: Runkosarja | L2: Runkosarja TOP-10 | Q2: Jatkosarjat | X2: SUOMENSARJA | AA2: Runkosarja | AH2: Runkosarja TOP-10 | AM2: Jatkosarjat
B3: Vuosi | C3: Sija | D3: Seura | E3: OTT | F3: KUN | G3: LÖI | H3: TOI | I3: KL | J3: KL-% | L3: LÖI | M3: TOI | N3: L+T | O3: KL | Q3: OTT | R3: KUN | S3: LÖI | T3: TOI | U3: KL | V3: KL-% | X3: Vuosi | Y3: Sija | Z3: Seura | AA3: OTT | AB3: KUN | AC3: LÖI | AD3: TOI | AE3: KL | AF3: KL-% | AH3: LÖI | AI3: TOI | AJ3: L+T | AK3: KL | AM3: OTT | AN3: KUN | AO3: LÖI | AP3: TOI | AQ3: KL | AR3: KL-%
X4: 2001 | Y4: 1. | Z4: KiimU | AA4: 17 | AB4: 1 | AC4: 11 | AD4: 5 | AE4: 37 | AF4: 39.8 % | AG4: 93 | AM4: 10 | AN4: 0 | AO4: 2 | AP4: 1 | AQ4: 25 | AR4: 52.1 % | AS4: 48
B5: 2002 | C5: 12. | D5: KiimU | E5: 22 | F5: 0 | G5: 9 | H5: 3 | I5: 47 | J5: 46.5 % | K5: 101 | Q5: 3 | R5: 0 | S5: 1 | T5: 2 | U5: 3 | V5: 27.3 % | W5: 11
B6: 2003 | C6: 16. | D6: KiimU | E6: 22 | F6: 0 | G6: 10 | H6: 2 | I6: 40 | J6: 33.6 % | K6: 119
X7: 2004 | Y7: 3. | Z7: KiimU | AA7: 18 | AB7: 1 | AC7: 18 | AD7: 10 | AE7: 59 | AF7: 50.9 % | AG7: 116 | AM7: 2 | AN7: 0 | AO7: 2 | AP7: 0 | AQ7: 6 | AR7: 75.0 % | AS7: 8
X8: 2005 | Y8: 8. | Z8: KiimU | AA8: 18 | AB8: 1 | AC8: 11 | AD8: 7 | AE8: 59 | AF8: 48.4 % | AG8: 122
B9: 2006 | D9: KiimU | Q9: 3 | R9: 0 | S9: 1 | T9: 0 | U9: 9 | V9: 50.0 % | W9: 18 | X9: 2006 | Y9: 1. | Z9: KiimU | AA9: 18 | AB9: 1 | AC9: 13 | AD9: 4 | AE9: 67 | AF9: 56.8 % | AG9: 118 | AM9: 8 | AN9: 0 | AO9: 4 | AP9: 5 | AQ9: 27 | AR9: 52.9 % | AS9: 51
B10: 2007 | D10: KiimU | Q10: 1 | R10: 0 | S10: 0 | T10: 0 | U10: 1 | V10: 12.5 % | W10: 8 | X10: 2007 | Y10: 1. | Z10: KiimU | AA10: 17 | AB10: 0 | AC10: 15 | AD10: 13 | AE10: 55 | AF10: 49.1 % | AG10: 112 | AM10: 6 | AN10: 0 | AO10: 3 | AP10: 1 | AQ10: 19 | AR10: 65.5 % | AS10: 29
X11: 2008 | Y11: 4. | Z11: KiimU | AA11: 12 | AB11: 1 | AC11: 18 | AD11: 9 | AE11: 47 | AF11: 54.7 % | AG11: 86 | AH11: 8. | AJ11: 9. | AM11: 2 | AN11: 0 | AO11: 2 | AP11: 1 | AQ11: 8 | AR11: 57.1 % | AS11: 14
X12: 2009 | Y12: 1. | Z12: KiimU | AA12: 16 | AB12: 0 | AC12: 9 | AD12: 2 | AE12: 42 | AF12: 45.2 % | AG12: 93 | AM12: 7 | AN12: 0 | AO12: 5 | AP12: 2 | AQ12: 16 | AR12: 39.0 % | AS12: 41
X13: 2010 | Y13: 7. | Z13: KiimU | AA13: 18 | AB13: 1 | AC13: 22 | AD13: 2 | AE13: 58 | AF13: 54.2 % | AG13: 107
X14: 2011 | Y14: 5. | Z14: KiimU | AA14: 17 | AB14: 1 | AC14: 20 | AD14: 11 | AE14: 54 | AF14: 52.4 % | AG14: 103
X15: 2012 | Y15: 2. | Z15: KiimU | AA15: 18 | AB15: 0 | AC15: 10 | AD15: 3 | AE15: 46 | AF15: 50.5 % | AG15: 91 | AM15: 6 | AN15: 0 | AO15: 0 | AP15: 0 | AQ15: 14 | AR15: 45.2 % | AS15: 31
X16: 2013 | Y16: 7. | Z16: KiimU | AA16: 18 | AB16: 0 | AC16: 15 | AD16: 4 | AE16: 51 | AF16: 40.8 % | AG16: 125
X17: 2014 | Y17: 6. | Z17: KiimU | AA17: 16 | AB17: 0 | AC17: 24 | AD17: 2 | AE17: 50 | AF17: 47.6 % | AG17: 105 | AH17: 10.
X19: 2023 | Y19: 7. | Z19: KäKa | AA19: 5 | AB19: 0 | AC19: 2 | AD19: 4 | AE19: 14 | AF19: 51.9 % | AG19: 27
B20: YHTEENSÄ | E20: =SUM(E4:E19) -> 44 | F20: =SUM(F4:F19) -> 0 | G20: =SUM(G4:G19) -> 19 | H20: =SUM(H4:H19) -> 5 | I20: =SUM(I4:I19) -> 87 | J20: =PRODUCT(I20/K20) -> 39.5 % | K20: =SUM(K4:K19) -> 220 | Q20: =SUM(Q4:Q19) -> 7 | R20: =SUM(R4:R19) -> 0 | S20: =SUM(S4:S19) -> 2 | T20: =SUM(T4:T19) -> 2 | U20: =SUM(U4:U19) -> 13 | V20: =PRODUCT(U20/W20) -> 35.1 % | W20: =SUM(W4:W19) -> 37 | X20: YHTEENSÄ | AA20: =SUM(AA4:AA19) -> 208 | AB20: =SUM(AB4:AB19) -> 7 | AC20: =SUM(AC4:AC19) -> 188 | AD20: =SUM(AD4:AD19) -> 76 | AE20: =SUM(AE4:AE19) -> 639 | AF20: =PRODUCT(AE20/AG20) -> 49.2 % | AG20: =SUM(AG4:AG19) -> 1298 | AM20: =SUM(AM4:AM19) -> 41 | AN20: =SUM(AN4:AN19) -> 0 | AO20: =SUM(AO4:AO19) -> 18 | AP20: =SUM(AP4:AP19) -> 10 | AQ20: =SUM(AQ4:AQ19) -> 115 | AR20: =PRODUCT(AQ20/AS20) -> 51.8 % | AS20: =SUM(AS4:AS19) -> 222
B22: KAIKKI OTTELUT | E22: OTT | F22: KUN | G22: LÖI | H22: TOI | I22: KL | J22: KL-% | L22: ka/L | M22: ka/T | N22: ka/l+t | O22: ka/kl | R22: Seurat | T22: KiimU = Kiimingin Urheilijat (1938), kasvattajaseura
B23: SUPERPESIS | E23: 0 | F23: 0 | G23: 0 | H23: 0 | I23: 0 | J23: 0.0 % | K23: 0 | L23: 0.00 | M23: 0.00 | N23: 0.00 | O23: 0.00 | T23: KäKa = Kärsämäen Kataja (1933)
B24: YKKÖSPESIS | E24: =PRODUCT(E20+Q20) -> 51 | F24: =PRODUCT(F20+R20) -> 0 | G24: =PRODUCT(G20+S20) -> 21 | H24: =PRODUCT(H20+T20) -> 7 | I24: =PRODUCT(I20+U20) -> 100 | J24: =PRODUCT(I24/K24) -> 38.9 % | K24: =PRODUCT(K20+W20) -> 257 | L24: =PRODUCT((F24+G24)/E24) -> 0.41 | M24: =PRODUCT(H24/E24) -> 0.14 | N24: =PRODUCT((F24+G24+H24)/E24) -> 0.55 | O24: =PRODUCT(I24/E24) -> 1.96
B25: SUOMENSARJA | E25: =PRODUCT(AA20+AM20) -> 249 | F25: =PRODUCT(AB20+AN20) -> 7 | G25: =PRODUCT(AC20+AO20) -> 206 | H25: =PRODUCT(AD20+AP20) -> 86 | I25: =PRODUCT(AE20+AQ20) -> 754 | J25: =PRODUCT(I25/K25) -> 49.6 % | K25: =PRODUCT(AG20+AS20) -> 1520 | L25: =PRODUCT((F25+G25)/E25) -> 0.86 | M25: =PRODUCT(H25/E25) -> 0.35 | N25: =PRODUCT((F25+G25+H25)/E25) -> 1.20 | O25: =PRODUCT(I25/E25) -> 3.03
B26: YHTEENSÄ | E26: =SUM(E23:E25) -> 300 | F26: =SUM(F23:F25) -> 7 | G26: 227 | H26: 93 | I26: 854 | J26: =PRODUCT(I26/K26) -> 48.1 % | K26: =SUM(K23:K25) -> 1777 | L26: =PRODUCT((F26+G26)/E26) -> 0.78 | M26: =PRODUCT(H26/E26) -> 0.31 | N26: =PRODUCT((F26+G26+H26)/E26) -> 1.09 | O26: =PRODUCT(I26/E26) -> 2.85
